bitfinex/quotes_ETHUSD_20240730
["timestamp","ask_amount","ask_price","bid_price","bid_amount"]
[1722354478140,0.55,3322.8,3322.7,0.08759121]
[1722354478337,0.55,3322.8,3322.6,0.08764173]
[1722354478583,3.55953,3322.8,3322.7,0.08759121]
[1722354478886,1.141063,3322.8,3322.3,3.00995]
[1722354479048,0.55,3322.8,3322.1,3.01007]
[1722354479238,0.55,3322.8,3322.4,0.08769326]
[1722354479239,3.55955,3322.8,3322.4,0.08769326]
[1722354479437,3.55955,3322.8,3322.5,0.08763565]
[1722354479883,3.55955,3322.8,3322.1,3.01007]
[1722354480143,0.55,3322.8,3322.2,3.00999]
[1722354480379,0.55,3322.8,3322.3,3.00994]
[1722354480586,0.55,3322.8,3322.4,3.00986]
[1722354480904,2.4197,3323.3,3322.4,3.15894991]
[1722354481076,2.4197,3323.3,3322.7,3.00959]
[1722354481238,2.4197,3323.3,3322.8,3.00946]
[1722354481444,2.4197,3323.3,3322.9,3.00941]
[1722354481852,2.4197,3323.7,3323.0,0.08738775]
[1722354482189,3.00883,3323.6,3323.0,3.09666775]
[1722354482555,6.01769,3323.6,3323.0,0.08738775]
[1722354482886,3.852569,3323.6,3323.0,3.09665775]
[1722354483091,0.55,3323.5,3323.0,3.00927]
[1722354483436,0.55,3323.5,3323.1,3.00922]
[1722354483670,0.55,3323.5,3323.0,3.00927]
[1722354483864,5.42847,3323.7,3323.0,3.00925]
[1722354483865,0.55,3323.6,3323.0,3.00925]
[1722354484072,0.55,3323.6,3322.9,3.00941]
[1722354484640,3.009,3323.4,3322.7,3.00954]
[1722354484836,3.00912,3323.3,3322.6,3.00964]
[1722354485093,0.55,3323.2,3322.5,38.00973]
[1722354485301,2.4197,3323.7,3322.9,3.00939]
[1722354485444,7.47,3324.0,3323.0,0.06017658]
[1722354485643,7.47,3324.0,3323.4,3.00889]
[1722354485841,0.98178,3324.0,3323.4,3.0089]
[1722354486037,2.3478,3324.1,3323.7,3.00868]
[1722354486242,2.3478,3324.1,3323.5,3.00887]
[1722354486243,2.2791,3324.5,3323.9,3.00843]
[1722354486477,2.2791,3324.5,3323.9,3.00846]
[1722354486702,2.2791,3324.5,3323.5,0.06017445]
[1722354486874,2.2791,3324.5,3323.9,3.00844]
[1722354487050,0.24291,3324.3,3323.7,3.00863]
[1722354487385,0.24291,3324.3,3323.9,6.0169]
[1722354487561,0.24291,3324.3,3324.0,3.00838]
[1722354487758,2.3607,3324.9,3323.6,2.4198]
[1722354488056,3.00774,3324.8,3324.1,3.00833]
[1722354488393,3.00792,3324.6,3323.8,3.00854]
[1722354488697,3.00792,3324.6,3324.0,3.00838]
[1722354488888,3.00775,3324.8,3324.1,3.00832]
[1722354489133,0.55,3324.3,3324.1,3.00832]
[1722354490137,0.55,3324.3,3324.1,6.0166]
[1722354490343,0.55,3324.3,3324.2,3.00824]
[1722354490642,0.55,3324.3,3324.1,3.00825]
[1722354490841,0.55,3324.3,3323.9,3.00844]
[1722354491135,0.55,3324.3,3323.9,3.00846]
[1722354491346,0.55,3324.3,3324.1,3.00831]
[1722354491494,0.55,3324.3,3324.2,3.00824]
[1722354491692,12.0490546,3330.7,3324.2,3.00824]
[1722354491693,3.00661,3326.0,3325.3,3.00718]
[1722354491896,2.2753,3326.4,3325.1,0.06014246]
[1722354491897,3.00653,3326.1,3325.1,0.06014246]
[1722354492197,3.00666,3326.0,3325.3,3.00722]
[1722354492398,0.300666,3325.9,3325.3,3.00722]
[1722354492718,0.300666,3325.9,3325.0,37.4757]
[1722354492719,3.307416,3325.9,3325.4,0.08552082]
[1722354492936,3.307416,3325.9,3325.0,38.00744]
[1722354493251,3.307416,3325.9,3324.5,5.4527]
[1722354493252,3.00703,3325.6,3325.1,0.08566274]
[1722354493598,0.300666,3325.9,3324.6,3.00782]
[1722354493599,3.00711,3325.5,3324.6,3.00782]
[1722354493912,3.00735,3325.2,3324.3,6.01616]
[1722354494099,0.55,3325.1,3324.4,0.08577809]
[1722354494299,0.55,3325.1,3324.6,3.00786]
[1722354494499,0.55,3325.3,3324.7,0.0851177]
[1722354494718,3.55726,3325.3,3324.7,0.0851177]
[1722354494935,3.00752,3325.0,3324.3,3.0081]
[1722354495103,0.55,3324.9,3324.4,0.0852691]
[1722354495617,0.55,3324.9,3324.4,3.0933191]
[1722354495949,3.00783,3324.7,3324.4,0.0852691]
[1722354496257,0.300783,3324.6,3323.9,6.01687]
[1722354496551,0.300783,3324.6,3324.1,3.00827]
[1722354496710,0.55,3324.5,3324.2,0.08545013]
[1722354497106,0.55,3324.5,3323.5,37.3087]
[1722354497107,3.55801,3324.5,3323.8,3.00854]
[1722354497307,3.0082,3324.3,3323.9,0.08560393]
[1722354497552,0.30082,3324.2,3323.7,3.0]
[1722354497764,0.55,3324.2,3323.8,0.08565442]
[1722354497927,3.00824,3324.2,3323.8,0.08565442]
[1722354498249,3.00809,3324.4,3323.7,3.00864]
[1722354498250,0.55,3324.1,3323.7,3.00864]
[1722354498414,0.55,3324.1,3323.9,0.08560393]
[1722354498607,3.00806,3324.4,3323.7,3.00863]
[1722354498608,0.55,3324.3,3323.8,0.08565442]
[1722354498851,0.55,3324.3,3324.0,0.08555345]
[1722354499151,0.55,3324.3,3323.7,3.00863]
[1722354499503,0.55,3324.3,3323.8,0.08565442]
[1722354499748,3.00806,3324.4,3323.7,3.00863]
[1722354499960,0.55,3324.3,3323.8,0.08565442]
[1722354500317,0.55,3324.3,3323.8,3.00854]
[1722354500517,0.55,3324.5,3323.9,0.08560393]
[1722354500861,3.00829,3324.2,3323.6,3.0]
[1722354501027,0.55,3324.1,3324.0,0.08555345]
[1722354501514,3.55806,3324.4,3323.7,3.00864]
[1722354501713,3.55806,3324.4,3323.8,0.08565442]
[1722354501959,0.55,3324.4,3324.0,3.00835]
[1722354502126,0.55,3324.7,3324.1,3.0684122]
[1722354502332,3.00756,3325.0,3324.2,0.08545249]
[1722354502921,3.00783,3324.7,3324.2,0.08545249]
[1722354503115,3.00783,3324.7,3324.0,3.00839]
[1722354503345,0.300783,3324.6,3324.1,0.08550297]
[1722354503554,3.0081,3324.4,3323.8,6.0086]
[1722354503866,0.55,3324.3,3323.9,0.08560393]
[1722354504036,3.55797,3324.5,3323.9,0.08560393]
[1722354504037,0.55,3324.5,3323.9,3.09408393]
[1722354504233,0.55,3324.8,3324.1,3.00824]
[1722354504454,3.00781,3324.7,3324.1,3.00824]
[1722354504658,0.55,3324.6,3324.2,0.08545249]
[1722354504830,3.55788,3324.6,3324.2,0.08545249]
[1722354505037,3.55788,3324.6,3323.9,3.00845]
[1722354505038,0.55,3324.6,3323.9,3.00845]
[1722354505252,0.55,3324.9,3324.3,0.08540201]
[1722354505416,2.3969,3325.3,3324.3,0.06015861]
[1722354505615,3.00702,3325.6,3324.8,3.00768]
[1722354505815,3.00702,3325.6,3324.7,3.00774]
[1722354506077,2.3711,3325.8,3324.9,0.08533238]
[1722354506078,5.37794,3325.8,3324.9,0.08533238]
[1722354506254,3.00694,3325.7,3324.9,3.00754]
[1722354506439,3.00699,3325.6,3325.0,0.08528192]
[1722354506622,3.00706,3325.5,3325.0,0.08528192]
[1722354507137,3.845533,3325.6,3325.1,0.08523147]
[1722354507355,3.845533,3325.6,3324.7,3.0077]
[1722354507356,3.00702,3325.6,3324.9,3.0076]
[1722354507647,3.00702,3325.6,3325.0,0.08528192]
[1722354509077,0.55,3325.5,3325.0,0.08528192]
[1722354509384,0.55,3325.6,3325.0,0.08528192]
[1722354509586,0.55,3325.6,3325.1,3.00741]
[1722354509877,0.55,3325.6,3325.0,0.08528192]
[1722354509878,3.00715,3325.4,3325.0,0.08528192]
[1722354510086,0.55,3325.3,3325.2,0.08518102]
[1722354510534,0.55,3325.3,3324.7,6.00771]
[1722354510735,0.55,3325.3,3324.8,0.08538284]
[1722354510951,3.00738,3325.2,3324.8,0.08538284]
[1722354511148,3.55743,3325.1,3324.5,7.37]
[1722354511388,3.00756,3325.0,3324.6,0.08548376]
[1722354511546,0.55,3324.9,3324.6,0.08548376]
[1722354511953,0.55,3325.1,3324.5,3.00795]
[1722354512260,0.55,3325.1,3324.7,3.00778]
[1722354512462,0.55,3325.1,3324.6,0.08548376]
[1722354512781,0.55,3325.1,3324.7,0.0853909]
[1722354512983,3.9788308,3325.1,3324.7,0.0853909]
[1722354513137,3.55746,3325.1,3324.7,0.0853909]
[1722354513344,3.55746,3325.1,3324.5,3.00796]
[1722354513657,0.55,3325.1,3324.6,3.09331137]
[1722354513859,10.4769,3325.7,3324.6,3.09331137]
[1722354513860,3.00712,3325.5,3324.8,3.00763]
[1722354514200,3.00712,3325.5,3324.9,0.08528998]
[1722354514676,3.00697,3325.6,3324.9,3.09286998]
[1722354514984,6.01401,3325.6,3324.9,3.09286998]
[1722354515191,3.00721,3325.4,3324.9,0.08528998]
[1722354515411,0.300721,3325.3,3324.9,0.08528998]
[1722354515611,3.00738,3325.2,3324.6,10.37782]
[1722354515758,3.55744,3325.1,3325.0,0.08523481]
[1722354515959,3.55733,3325.2,3324.6,7.37]
[1722354516151,3.55733,3325.2,3324.7,0.08538619]
[1722354516582,0.55,3325.2,3324.7,0.08538619]
[1722354516855,0.55,3325.3,3325.1,3.00737]
[1722354517087,0.55,3325.3,3325.2,0.08499727]
[1722354517616,0.55,3325.3,3325.2,3.09232727]
[1722354519307,0.55,3325.3,3325.2,0.08499727]
[1722354519604,0.55,3325.3,3325.1,3.00742]
[1722354519815,0.55,3325.3,3325.2,3.09220718]
[1722354520211,0.55,3325.3,3325.2,0.08487718]
[1722354520908,3.5571,3325.5,3325.2,0.08487718]
[1722354521107,0.55,3325.5,3324.8,2.3908]
[1722354521402,3.55709,3325.5,3324.9,3.09261443]
[1722354521560,0.55,3325.5,3325.0,3.00751]
[1722354521766,0.55,3325.7,3325.1,0.08495352]
[1722354521980,0.55,3325.7,3325.1,3.09232307]
[1722354522409,0.55,3325.7,3325.3,3.00724]
[1722354522711,0.55,3325.8,3325.3,6.01444]
[1722354522917,0.55,3325.8,3325.4,0.08403552]
[1722354523209,0.55,3325.8,3325.4,3.09118552]
[1722354523394,0.55,3325.8,3325.4,0.08403552]
[1722354523569,3.00661,3326.0,3325.4,0.08403552]
[1722354523570,0.55,3325.9,3325.4,3.09118552]
[1722354523978,2.4167,3326.2,3325.5,3.00701]
[1722354524192,0.55,3326.1,3325.6,0.08393464]
[1722354525181,3.55657,3326.1,3325.6,0.08393464]
[1722354526068,3.00663,3326.0,3325.6,0.08393464]
[1722354526269,0.55,3325.9,3325.4,2.4152]
[1722354526468,0.55,3325.9,3325.5,0.08398508]
[1722354527307,0.905663,3325.9,3325.5,0.08398508]
[1722354527917,0.55,3325.9,3325.5,0.08398508]
[1722354528216,0.55,3326.0,3325.5,0.08398508]
[1722354528519,3.55664,3326.0,3325.5,0.08398508]
[1722354529275,0.55,3326.0,3325.7,3.00688]
[1722354529608,3.55649,3326.2,3325.8,0.08369958]
[1722354529814,0.656283,3326.1,3325.8,0.08369958]
[1722354530015,0.656283,3326.1,3325.6,3.00697]
[1722354530016,0.55,3326.0,3325.3,3.00718]
[1722354530212,0.55,3326.0,3325.9,0.08363973]
[1722354530370,0.55,3326.0,3325.3,3.00718]
[1722354530570,3.362352,3325.9,3325.4,0.08389191]
[1722354530812,0.55,3325.8,3325.4,0.08389191]
[1722354531109,3.00693,3325.7,3325.1,5.37388]
[1722354531295,0.55,3325.6,3325.1,5.37388]
[1722354531637,0.55,3325.8,3325.3,3.0072]
[1722354531918,0.55,3325.8,3325.4,0.08389191]
[1722354532069,3.55675,3325.9,3325.4,0.08389191]
[1722354532987,3.0068,3325.8,3325.4,0.08389191]
[1722354533175,0.55,3325.7,3325.4,0.08389191]
[1722354533376,0.55,3325.7,3325.2,3.00731]
[1722354533577,0.55,3325.7,3325.5,0.08384147]
[1722354533887,0.55,3325.7,3325.6,0.08379103]
[1722354534082,0.55,3325.7,3325.2,3.00731]
[1722354534312,0.55,3325.7,3325.3,0.08394235]
[1722354534512,0.55,3325.7,3325.2,3.00731]
[1722354534677,3.00653,3326.1,3325.3,3.62850335]
[1722354534878,3.00665,3326.0,3325.4,3.00713]
[1722354535078,3.00665,3326.0,3325.5,0.08384147]
[1722354536008,0.55,3325.9,3325.5,0.08384147]
[1722354538020,0.55,3325.9,3325.5,3.09090147]
[1722354538320,3.55661,3326.0,3325.5,0.08384147]
[1722354539041,3.00679,3325.8,3325.5,0.08384147]
[1722354539194,0.55,3325.7,3325.2,3.00727]
[1722354539394,0.55,3325.7,3325.6,0.08382162]
[1722354539595,0.55,3325.7,3325.2,6.01456]
[1722354539921,0.55,3325.7,3325.3,3.00723]
[1722354540117,0.55,3325.8,3325.4,0.08393427]
[1722354540630,0.55,3325.8,3325.2,3.00728]
[1722354540928,3.55679,3325.8,3325.2,3.00728]
[1722354541092,3.55679,3325.8,3325.3,0.08398472]
[1722354541296,3.00688,3325.7,3325.1,5.37386]
[1722354541491,0.55,3325.6,3325.2,0.08403516]
[1722354541805,3.55699,3325.6,3325.2,0.08403516]
[1722354543194,0.55,3325.6,3325.2,0.08403516]
[1722354543390,3.00646,3326.2,3325.2,0.08403516]
[1722354543391,3.00649,3326.2,3325.3,0.06014405]
[1722354543595,3.00649,3326.2,3325.6,3.00696]
[1722354543826,3.00649,3326.2,3325.5,0.0601364]
[1722354544124,3.00649,3326.2,3325.6,3.09080459]
[1722354544502,3.00662,3326.0,3325.6,0.08385459]
[1722354544708,3.00653,3326.1,3325.5,3.00706]
[1722354545032,0.55,3326.0,3325.6,0.08385459]
[1722354545653,3.00675,3325.9,3325.6,0.08385459]
[1722354545840,0.55,3325.8,3325.6,0.08385459]
[1722354546046,3.00676,3325.9,3325.3,3.0072]
[1722354546252,0.55,3325.8,3325.7,0.08375235]
[1722354546458,0.55,3325.8,3325.3,3.0072]
[1722354546658,0.55,3325.8,3325.7,0.08375235]
[1722354546857,0.55,3325.8,3325.3,3.00719]
[1722354547058,0.55,3325.9,3325.7,0.08375235]
[1722354547233,0.55,3325.9,3325.4,3.06724629]
[1722354547234,0.55,3325.9,3325.5,3.00705]
[1722354547436,0.55,3326.1,3325.8,0.08370192]
[1722354547749,3.00626,3326.4,3325.9,0.08365149]
[1722354547932,3.00644,3326.2,3325.9,0.08365149]
[1722354548137,3.00644,3326.2,3325.5,5.48881]
[1722354548341,3.00644,3326.2,3325.6,0.08380279]
[1722354548726,3.00644,3326.2,3325.6,3.09077279]
[1722354549063,0.55,3326.1,3325.6,3.09077279]
[1722354549971,3.55657,3326.1,3325.6,0.08380279]
[1722354550139,3.00675,3325.9,3325.6,0.08380279]
[1722354550348,0.55,3325.8,3325.6,0.08380279]
[1722354550653,3.55685,3325.8,3325.1,5.48697]
[1722354550861,3.55685,3325.8,3325.7,0.0836935]
[1722354550862,6.56369,3325.8,3325.7,0.0836935]
[1722354551059,3.00703,3325.6,3325.2,3.0]
[1722354551372,3.5571,3325.5,3325.0,7.37]
[1722354551594,0.55,3325.5,3325.0,10.3775]
[1722354551873,0.55,3325.5,3325.0,10.37746]
[1722354552370,0.55,3325.5,3325.2,3.00732]
[1722354552668,3.55703,3325.6,3325.0,11.953429]
[1722354553158,3.00707,3325.5,3325.0,8.945969]
[1722354553366,0.55,3325.6,3325.0,8.945969]
[1722354553367,0.55,3325.4,3325.0,7.37]
[1722354553563,0.55,3325.6,3324.9,3.0076]
[1722354553729,3.00713,3325.5,3324.8,5.38222]
[1722354553927,3.55672,3325.9,3324.9,3.0]
[1722354553928,3.55721,3325.4,3324.9,3.0]
[1722354554259,0.55,3325.3,3324.9,3.0]
[1722354554571,3.5573,3325.3,3324.9,3.0]
[1722354554731,0.55,3325.3,3324.8,5.3746]
[1722354555132,3.55724,3325.3,3324.8,2.3746]
[1722354555382,0.55,3325.3,3324.8,2.3746]
[1722354555575,3.55719,3325.4,3324.8,2.3746]
[1722354555728,3.55719,3325.4,3324.8,5.38226]
[1722354555930,6.56443,3325.4,3324.8,2.3746]
[1722354556269,3.00726,3325.3,3324.8,2.3746]
[1722354556475,0.55,3325.2,3324.8,5.38227]
[1722354556703,0.55,3325.4,3324.9,3.0]
[1722354556904,0.55,3325.4,3324.9,3.08420301]
[1722354557199,3.00725,3325.3,3324.9,3.08420301]
[1722354557379,0.55,3325.2,3324.9,3.08420301]
[1722354557576,0.55,3325.4,3325.0,3.00751]
[1722354557771,3.00709,3325.5,3325.1,0.0841021]
[1722354557972,3.55717,3325.4,3324.9,3.0]
[1722354558174,3.00725,3325.3,3325.0,0.08414549]
[1722354558518,0.55,3325.2,3325.0,0.08414549]
[1722354558813,0.55,3325.2,3325.0,1.08831174]
[1722354558973,0.55,3325.4,3325.0,1.08831174]
[1722354559511,3.0071,3325.5,3325.0,1.08831174]
[1722354559714,0.55,3325.4,3325.0,0.08414549]
[1722354561917,0.55,3325.4,3325.0,0.1442914]
[1722354562416,0.55,3325.4,3325.1,3.00737]
[1722354562576,0.55,3325.6,3325.0,3.1518014]
[1722354562781,0.55,3325.6,3325.0,5.23166238]
[1722354562981,3.00697,3325.6,3325.0,5.23166238]
[1722354563304,0.55,3325.5,3325.1,3.00742]
[1722354563521,0.55,3325.6,3325.1,6.0148]
[1722354563812,0.55,3325.6,3325.3,5.40224]
[1722354563960,3.55681,3325.8,3325.3,2.395]
[1722354564195,3.00688,3325.7,3325.4,0.08405437]
[1722354564397,0.55,3325.6,3325.4,0.08405437]
[1722354564599,3.55681,3325.8,3325.4,0.08405437]
[1722354564897,0.55,3325.8,3325.4,0.08405437]
[1722354565093,0.55,3325.9,3325.4,0.08405437]
[1722354565323,3.00694,3325.7,3325.4,0.08405437]
[1722354565510,0.55,3325.6,3325.4,0.08405437]
[1722354565726,3.55704,3325.6,3325.4,0.08405437]
[1722354565925,3.00706,3325.5,3325.0,2.3017]
[1722354566100,0.55,3325.4,3325.1,0.08420571]
[1722354566300,0.55,3325.4,3325.0,2.3017]
[1722354566501,0.55,3325.4,3325.1,0.08420571]
[1722354566842,3.00697,3325.6,3325.0,2.3017]
[1722354566843,0.55,3325.5,3325.0,2.3017]
[1722354567140,0.55,3325.5,3325.1,0.08418216]
[1722354567338,3.55707,3325.5,3325.0,2.3017]
[1722354567536,3.00725,3325.3,3325.1,0.08418216]
[1722354567844,0.55,3325.2,3324.9,3.0]
[1722354568347,0.55,3325.3,3324.8,3.0]
[1722354568642,0.55,3325.3,3324.8,6.00769]
[1722354569748,0.55,3325.3,3324.8,3.0]
[1722354569916,3.55724,3325.4,3324.7,5.4247]
[1722354570116,0.55,3325.4,3324.7,5.4247]
[1722354570468,3.55719,3325.4,3324.8,3.00769]
[1722354570644,3.00725,3325.3,3324.9,3.0]
[1722354570939,3.00747,3325.1,3324.6,7.37]
[1722354571148,0.55,3325.0,3324.6,7.37]
[1722354571444,3.55756,3325.0,3324.4,40.31969]
[1722354571864,0.55,3325.0,3324.6,3.00785]
[1722354572044,0.55,3325.2,3324.7,3.00777]
[1722354572239,0.55,3325.2,3324.7,3.09213749]
[1722354573767,0.55,3325.2,3324.8,3.00765]
[1722354573935,3.00693,3325.7,3324.6,0.06015421]
[1722354573936,0.55,3325.3,3324.9,3.09182657]
[1722354574131,5.31793,3325.7,3324.9,3.09182657]
[1722354574132,3.358693,3325.7,3325.0,2.46174922]
[1722354574331,3.0068,3325.8,3325.1,0.08422689]
[1722354574669,3.00692,3325.7,3325.1,3.09164689]
[1722354574852,2.4024,3326.0,3325.1,0.08422689]
[1722354575060,3.00685,3325.8,3325.2,3.00728]
[1722354575368,3.00685,3325.8,3325.3,0.08409066]
[1722354575558,0.55,3325.7,3325.1,3.00742]
[1722354575756,3.55688,3325.7,3325.2,0.08414111]
[1722354576265,3.55693,3325.7,3325.2,0.08414111]
[1722354576567,0.55,3325.7,3325.3,3.00723]
[1722354576781,3.00652,3326.1,3325.5,3.00705]
[1722354576972,3.00648,3326.2,3325.6,0.08388754]
[1722354577173,3.00652,3326.1,3325.5,3.06714536]
[1722354577389,3.00652,3326.1,3325.6,35.08388754]
[1722354577679,5.40059,3326.3,3325.6,38.09083754]
[1722354577890,3.00644,3326.2,3325.6,38.09083754]
[1722354578385,3.00644,3326.2,3325.6,35.08388754]
[1722354578938,0.55,3326.1,3325.6,38.09079754]
[1722354579144,0.55,3326.2,3325.6,41.13981042]
[1722354579347,0.55,3326.2,3325.6,44.14673042]
[1722354579552,0.55,3326.2,3325.6,41.13981042]
[1722354580555,3.55644,3326.2,3325.6,41.13981042]
[1722354581090,3.00658,3326.1,3325.6,38.13290042]
[1722354581296,0.55,3326.0,3325.6,35.08388754]
[1722354581866,3.00675,3325.9,3325.6,0.08388754]
[1722354582091,0.55,3325.8,3325.6,0.08388754]
[1722354582291,3.00688,3325.7,3325.6,0.08388754]
[1722354582588,3.55688,3325.7,3325.6,0.08370862]
[1722354582788,3.55688,3325.7,3325.3,7.37]
[1722354583092,0.55,3325.6,3325.3,7.37]
[1722354583249,3.55702,3325.6,3325.3,7.37]
[1722354583700,0.55,3325.6,3325.3,7.37]
[1722354583953,0.55,3325.6,3325.3,8.107]
[1722354584154,3.00676,3325.9,3325.3,8.107]
[1722354584155,0.55,3325.8,3325.3,8.107]
[1722354584687,3.55681,3325.8,3325.3,8.107]
[1722354585395,3.00688,3325.7,3325.3,8.107]
[1722354585580,0.55,3325.6,3325.3,7.37]
[1722354586788,0.55,3325.6,3325.4,0.0838095]
[1722354587190,0.55,3325.6,3325.2,35.0]
[1722354587391,3.55699,3325.6,3325.3,0.08385994]
[1722354587597,3.00715,3325.4,3324.9,5.3111]
[1722354587794,3.55725,3325.3,3325.0,0.08401129]
[1722354588027,0.55,3325.6,3324.8,7.37]
[1722354588195,3.55733,3325.2,3325.1,0.08405266]
[1722354588401,3.55733,3325.2,3324.8,7.37]
[1722354588635,3.55733,3325.2,3325.1,0.08405266]
[1722354588921,3.55733,3325.2,3324.8,7.37]
[1722354589122,3.55733,3325.2,3325.1,0.08405266]
[1722354589335,3.55733,3325.2,3324.8,7.37]
[1722354589542,3.55733,3325.2,3325.1,0.08405266]
[1722354589854,3.55733,3325.2,3324.8,7.37]
[1722354590163,0.55,3325.2,3324.9,3.00756]
[1722354590315,3.55709,3325.5,3324.9,3.00756]
[1722354590640,3.55709,3325.5,3325.0,0.08410311]
[1722354591259,0.55,3325.5,3325.0,0.08410311]
[1722354592648,3.00721,3325.4,3325.0,0.08410311]
[1722354592949,0.55,3325.3,3324.8,4.045421]
[1722354593117,0.55,3325.3,3324.9,0.08415357]
[1722354593621,0.55,3325.3,3325.0,3.00746]
[1722354593821,0.55,3325.5,3325.1,0.08405266]
[1722354594028,0.55,3325.5,3325.0,3.00746]
[1722354594218,0.55,3325.5,3325.2,3.00729]
[1722354594429,0.55,3325.5,3325.3,0.08395176]
[1722354594638,0.55,3325.7,3325.2,3.00729]
[1722354594820,0.55,3325.7,3325.4,0.08400962]
[1722354595270,0.55,3325.7,3325.3,3.00719]
[1722354595417,0.55,3325.8,3325.5,0.08395918]
[1722354595617,3.5568,3325.8,3325.2,3.00729]
[1722354595817,3.0069,3325.7,3325.3,0.08406006]
[1722354596132,0.55,3325.6,3325.1,5.50312]
[1722354596312,0.55,3325.6,3325.2,3.00733]
[1722354596512,0.55,3325.6,3325.3,0.08406006]
[1722354596863,0.55,3325.7,3325.2,3.00733]
[1722354597074,0.55,3325.7,3325.4,0.08400962]
[1722354597280,0.55,3325.7,3325.3,0.08406006]
[1722354597564,0.55,3325.7,3325.2,3.00733]
[1722354597565,0.55,3325.7,3325.4,0.08400962]
[1722354597719,0.55,3325.7,3325.2,3.00733]
[1722354598070,0.55,3325.7,3325.3,0.08406006]
[1722354598356,0.55,3325.7,3325.4,3.00715]
[1722354598518,0.55,3325.9,3325.5,0.08395918]
[1722354598718,3.55676,3325.9,3325.5,0.08395918]
[1722354599051,3.55676,3325.9,3325.3,3.00724]
[1722354599354,0.55,3325.9,3325.4,3.00712]
[1722354599526,0.55,3325.9,3325.4,0.08400962]
[1722354599734,3.55671,3325.9,3325.4,0.08400962]
[1722354600966,3.00683,3325.8,3325.4,0.08400962]
[1722354601171,0.55,3325.7,3325.4,0.08400962]
[1722354601456,0.55,3325.7,3324.9,7.37]
[1722354601457,3.00703,3325.6,3325.5,0.08395918]
[1722354601756,3.55703,3325.6,3325.5,0.08395918]
[1722354601990,3.00707,3325.5,3324.9,10.37756]
[1722354602292,0.55,3325.4,3324.9,8.952839]
[1722354602503,3.55715,3325.4,3324.9,8.952839]
[1722354602705,0.55,3325.4,3324.9,11.960429]
[1722354602850,3.55716,3325.4,3324.9,8.952839]
[1722354603092,3.00728,3325.3,3324.9,7.37]
[1722354603302,0.55,3325.4,3324.9,7.37]
[1722354603303,0.55,3325.2,3324.9,7.37]
[1722354603604,0.55,3325.4,3325.1,3.00736]
[1722354603896,0.55,3325.4,3325.1,5.37466]
[1722354604082,0.55,3325.4,3325.2,3.00729]
[1722354604401,0.55,3325.7,3325.3,3.845435]
[1722354604589,0.55,3325.7,3325.3,3.00724]
[1722354604958,0.55,3325.7,3325.3,3.00719]
[1722354605200,0.55,3325.9,3325.1,2.42744153]
[1722354605396,3.00672,3325.9,3325.3,3.0072]
[1722354605696,0.55,3325.8,3325.4,3.00714]
[1722354605895,0.55,3325.8,3325.5,3.04901288]
[1722354606199,0.55,3325.8,3325.5,6.05605288]
[1722354606363,0.55,3325.9,3325.5,3.04901288]
[1722354606772,0.55,3326.0,3325.5,6.05600288]
[1722354606996,3.55661,3326.0,3325.5,3.04901288]
[1722354608786,3.55661,3326.0,3325.5,6.05607288]
[1722354609424,0.55,3326.0,3325.6,0.60560729]
[1722354609600,0.55,3326.0,3325.5,3.00706]
[1722354609806,0.55,3326.0,3325.6,3.00697]
[1722354609995,0.55,3326.0,3325.6,3.0069]
[1722354610919,0.55,3326.2,3325.6,3.0069]
[1722354611327,0.55,3326.2,3325.7,3.00682]
[1722354611885,3.55643,3326.2,3325.7,3.00682]
[1722354612086,3.00656,3326.1,3325.4,3.00709]
[1722354612282,3.55665,3326.0,3325.4,6.05610288]
[1722354612522,3.00665,3326.0,3325.2,6.01452]
[1722354612836,3.55672,3325.9,3325.3,3.00722]
[1722354613185,3.55672,3325.9,3325.2,3.00725]
[1722354613186,3.55672,3325.9,3325.4,3.00715]
[1722354613530,0.55,3325.9,3325.4,3.00715]
[1722354613740,0.55,3325.9,3325.5,0.300715]
[1722354614019,0.55,3325.9,3325.5,3.307775]
[1722354614227,0.55,3325.9,3325.4,3.00715]
[1722354614434,3.55677,3325.9,3325.2,3.00727]
[1722354614603,2.9776,3325.9,3325.2,3.00727]
[1722354614801,0.55,3325.9,3325.5,3.00698]
[1722354615004,3.55655,3326.1,3325.6,0.300698]
[1722354615204,3.55655,3326.1,3325.5,3.00702]
[1722354615518,0.55,3326.1,3325.7,3.00686]
[1722354615726,0.55,3326.2,3325.7,3.00688]
[1722354616028,0.55,3326.2,3325.8,3.307468]
[1722354616233,0.55,3326.2,3325.8,3.307398]
[1722354616435,0.55,3326.2,3325.8,0.300688]
[1722354616597,3.55616,3326.5,3325.9,0.08060486]
[1722354617023,3.55616,3326.5,3325.9,3.08725486]
[1722354618362,3.00593,3326.8,3325.9,0.69001735]
[1722354618520,3.00611,3326.6,3326.0,3.00661]
[1722354618718,5.28791,3326.6,3326.0,3.00661]
[1722354618940,5.28791,3326.6,3326.1,0.08048525]
[1722354619457,3.00627,3326.4,3326.1,0.08048525]
[1722354619752,3.00627,3326.4,3325.9,3.00668]
[1722354619753,3.00635,3326.3,3325.7,10.37683]
[1722354619917,3.00652,3326.1,3325.7,7.37]
[1722354620116,3.0117,3326.2,3325.2,2.4567]
[1722354620117,0.55,3326.0,3325.4,3.00715]
[1722354620418,3.0067,3325.9,3325.4,3.00715]